fUSD/lending_fUSD_20240828
["ID","MTS","AMOUNT","RATE_DAILY","PERIOD"]
[336491865,1724877280009,-500.0,0.0003863,120]
[336491866,1724877280043,-500.0,0.0003863,120]
[336491867,1724877280077,-500.0,0.0003863,120]
[336491868,1724877280111,-500.0,0.0003863,120]
[336491869,1724877280144,-913.04,0.0003863,120]
[336491870,1724877280177,-500.0,0.0003863,120]
[336491871,1724877280208,-500.0,0.0003863,120]
[336491872,1724877280241,-555.53,0.0003863,120]
[336491873,1724877280274,-500.0,0.0003863,120]
[336491874,1724877280305,-500.0,0.0003863,120]
[336491875,1724877280338,-5248.61,0.0003863,120]
[336491876,1724877280368,-500.0,0.0003863,120]
[336491877,1724877280400,-500.0,0.0003863,120]
[336491878,1724877280430,-629.06,0.0003863,120]
[336491879,1724877280461,-3477.12,0.0003863,120]
[336491880,1724877280491,-1126.54,0.0003863,120]
[336491881,1724877280523,-1552.91,0.0003863,120]
[336491882,1724877280552,-1717.58,0.0003863,120]
[336491883,1724877280583,-500.0,0.0003863,120]
[336491884,1724877280614,-500.0,0.0003863,120]
[336491885,1724877280646,-500.0,0.0003863,120]
[336491886,1724877280678,-500.0,0.0003863,120]
[336491887,1724877280709,-1654.4,0.0003863,120]
[336491888,1724877280740,-500.0,0.0003863,120]
[336491889,1724877280772,-2522.61,0.0003863,120]
[336491890,1724877280804,-2339.24,0.0003863,120]
[336491891,1724877280835,-1542.02,0.0003863,120]
[336491892,1724877280866,-500.0,0.0003863,120]
[336491893,1724877280895,-500.0,0.0003863,120]
[336491894,1724877280927,-781.97,0.0003863,120]
[336491895,1724877280958,-500.0,0.0003863,120]
[336491896,1724877280989,-564.3,0.0003863,120]
[336491897,1724877281019,-673.77,0.0003863,120]
[336491898,1724877281049,-776.56,0.0003863,120]
[336491899,1724877281079,-3090.37,0.0003863,120]
[336491900,1724877281108,-527.56041121,0.0003863,120]
[336491901,1724877281138,-4322.06,0.0003863,120]
[336491902,1724877281168,-500.0,0.0003863,120]
[336491903,1724877281201,-3147.94,0.0003863,120]
[336491904,1724877281230,-3772.86,0.0003863,120]
[336491905,1724877281261,-500.0,0.0003863,120]
[336491906,1724877281291,-500.0,0.0003863,120]
[336491907,1724877281324,-500.0,0.0003863,120]
[336491908,1724877281356,-1446.77,0.0003863,120]
[336491909,1724877281389,-500.0,0.0003863,120]
[336491910,1724877281422,-738.44,0.0003863,120]
[336491911,1724877281452,-294.93756113,0.0003863,120]
[336491912,1724877281483,-843.24,0.0003863,120]
[336491913,1724877281515,-3195.25,0.0003863,120]
[336491914,1724877281545,-500.0,0.0003863,120]
[336491915,1724877281575,-500.0,0.0003863,120]
[336491916,1724877281605,-300.0,0.0003863,120]
[336491917,1724877281637,-582.75,0.0003863,120]
[336491918,1724877281667,-500.0,0.0003863,120]
[336491919,1724877281700,-1168.97,0.0003863,120]
[336491920,1724877281733,-500.0,0.0003863,120]
[336491921,1724877281763,-1231.52,0.0003863,120]
[336491922,1724877281796,-500.0,0.0003863,120]
[336491923,1724877281826,-487.51440503,0.0003863,120]
[336491924,1724877281858,-500.0,0.0003863,120]
[336491925,1724877281889,-2199.82,0.0003863,120]
[336491926,1724877281922,-2372.86,0.0003863,120]
[336491927,1724877281954,-548.24,0.0003863,120]
[336491928,1724877281988,-1493.13,0.0003863,120]
[336491929,1724877282022,-500.0,0.0003863,120]
[336491930,1724877282054,-500.0,0.0003863,120]
[336491931,1724877282086,-500.0,0.0003863,120]
[336491932,1724877282118,-500.0,0.0003863,120]
[336491933,1724877282149,-1646.72,0.0003863,120]
[336491934,1724877282180,-500.0,0.0003863,120]
[336491935,1724877282210,-4273.92,0.0003863,120]
[336491936,1724877282242,-500.0,0.0003863,120]
[336491937,1724877282275,-500.0,0.0003863,120]
[336491938,1724877282307,-500.0,0.0003863,120]
[336491939,1724877282339,-500.0,0.0003863,120]
[336491940,1724877282372,-551.45,0.0003863,120]
[336491941,1724877282405,-1602.97,0.0003863,120]
[336491942,1724877282446,-833.68,0.0003863,120]
[336491943,1724877282477,-2101.67,0.0003863,120]
[336491944,1724877282507,-1804.35,0.0003863,120]
[336491945,1724877282538,-500.0,0.0003863,120]
[336491946,1724877282570,-500.0,0.0003863,120]
[336491947,1724877282809,-4031.24,0.0003863,120]
[336491948,1724877282840,-500.0,0.0003863,120]
[336491949,1724877282872,-1224.54,0.0003863,120]
[336491950,1724877282905,-500.0,0.0003863,120]
[336491951,1724877282939,-554.68,0.0003863,120]
[336491952,1724877282971,-2603.06,0.0003863,120]
[336491953,1724877283003,-500.0,0.0003863,120]
[336491954,1724877283037,-500.0,0.0003863,120]
[336491955,1724877283068,-818.77,0.0003863,120]
[336491956,1724877283098,-607.04,0.0003863,120]
[336491957,1724877283128,-585.38,0.0003863,120]
[336491958,1724877283158,-2541.0,0.0003863,120]
[336491959,1724877283189,-1315.7,0.0003863,120]
[336491960,1724877283219,-3487.84,0.0003863,120]
[336491961,1724877283249,-500.0,0.0003863,120]
[336491962,1724877283279,-876.36,0.0003863,120]
[336491963,1724877283309,-500.0,0.0003863,120]
[336491964,1724877283339,-554.4,0.0003863,120]
[336491965,1724877283370,-500.0,0.0003863,120]
[336491966,1724877283402,-2017.91,0.0003863,120]
[336491967,1724877283434,-500.0,0.0003863,120]
[336491968,1724877283464,-3610.88,0.0003863,120]
[336491969,1724877283496,-200.65158531,0.0003863,120]
[336491970,1724877283526,-1861.85,0.0003863,120]
[336491971,1724877283556,-519.21735355,0.0003863,120]
[336491972,1724877283587,-960.31,0.0003863,120]
[336491973,1724877283619,-1878.21,0.0003863,120]
[336491974,1724877283651,-897.42,0.0003863,120]
[336491975,1724877283683,-3828.16,0.0003863,120]
[336491976,1724877283714,-981.7,0.0003863,120]
[336491977,1724877283747,-6283.78,0.0003863,120]
[336491978,1724877283777,-500.0,0.0003863,120]
[336491979,1724877283808,-500.0,0.0003863,120]
[336491980,1724877283839,-500.0,0.0003863,120]
[336491981,1724877283873,-500.0,0.0003863,120]
[336491982,1724877283905,-4174.03,0.0003863,120]
[336491983,1724877283937,-522.39030585,0.0003863,120]
[336491984,1724877283969,-518.56,0.0003863,120]
[336491985,1724877284000,-885.5,0.0003863,120]
[336491986,1724877284034,-501.46475858,0.0003863,120]
[336491987,1724877284066,-1202.02,0.0003863,120]
[336491988,1724877284097,-500.0,0.0003863,120]
[336491989,1724877284129,-2869.16,0.0003863,120]
[336491990,1724877284161,-500.0,0.0003863,120]
[336491991,1724877284192,-500.0,0.0003863,120]
[336491992,1724877284222,-2146.61,0.0003863,120]
[336491993,1724877284253,-2452.46,0.0003863,120]
[336491994,1724877284282,-500.0,0.0003863,120]
[336491995,1724877284323,-1906.44,0.0003863,120]
[336491996,1724877284376,-638.3,0.0003863,120]
[336491997,1724877284429,-619.05,0.0003863,120]
[336491998,1724877284477,-500.0,0.0003863,120]
[336491999,1724877284529,-657.06,0.0003863,120]
[336492000,1724877284575,-500.0,0.0003863,120]
[336492001,1724877284624,-500.0,0.0003863,120]
[336492002,1724877284671,-500.0,0.0003863,120]
[336492003,1724877284721,-3724.88,0.0003863,120]
[336492004,1724877284766,-932.86,0.0003863,120]
[336492005,1724877284811,-1814.39,0.0003863,120]
[336492006,1724877284859,-500.0,0.0003863,120]
[336492007,1724877284908,-500.0,0.0003863,120]
[336492008,1724877284959,-1305.88,0.0003863,120]
[336492009,1724877285007,-1837.49,0.0003863,120]
[336492010,1724877285057,-500.0,0.0003863,120]
[336492011,1724877285106,-500.0,0.0003863,120]
[336492012,1724877285153,-1234.41,0.0003863,120]
[336492013,1724877285204,-501.33195077,0.0003863,120]
[336492014,1724877285252,-2141.06,0.0003863,120]
[336492015,1724877285307,-500.0,0.0003863,120]
[336492016,1724877285357,-508.88137241,0.0003863,120]
[336492017,1724877285406,-527.17177387,0.0003863,120]
[336492018,1724877285464,-500.0,0.0003863,120]
[336492019,1724877285520,-969.8,0.0003863,120]
[336492020,1724877285576,-500.0,0.0003863,120]
[336492021,1724877285626,-886.0,0.0003863,120]
[336492022,1724877285677,-500.0,0.0003863,120]
[336492023,1724877285732,-519.20340881,0.0003863,120]
[336492024,1724877285790,-2200.34,0.0003863,120]
[336492025,1724877285843,-3349.22,0.0003863,120]
[336492026,1724877285895,-2000.0,0.0003863,120]
[336492027,1724877285955,-5137.4,0.0003863,120]
[336492028,1724877286011,-1074.98,0.0003863,120]
[336492029,1724877286064,-4084.51,0.0003863,120]
[336492030,1724877286115,-500.0,0.0003863,120]
[336492031,1724877286167,-5733.23,0.0003863,120]
[336492032,1724877286230,-1521.27,0.0003863,120]
[336492033,1724877286287,-1698.16,0.0003863,120]
[336492034,1724877286344,-500.0,0.0003863,120]
[336492035,1724877286397,-1500.0,0.0003863,120]
[336492036,1724877286454,-4196.08,0.0003863,120]
[336492037,1724877286504,-500.0,0.0003863,120]
[336492038,1724877286551,-500.0,0.0003863,120]
[336492039,1724877286599,-1115.8,0.0003863,120]
[336492040,1724877286648,-521.64769448,0.0003863,120]
[336492041,1724877286701,-500.0,0.0003863,120]
[336492042,1724877286747,-1272.36,0.0003863,120]
[336492043,1724877286796,-557.46,0.0003863,120]
[336492044,1724877286844,-1678.18,0.0003863,120]
[336492045,1724877287163,-500.0,0.0003863,120]
[336492046,1724877287206,-500.0,0.0003863,120]
[336492047,1724877287242,-2122.28,0.0003863,120]
[336492048,1724877287277,-974.29,0.0003863,120]
[336492049,1724877287311,-897.55,0.0003863,120]
[336492050,1724877287351,-1511.65,0.0003863,120]
[336492051,1724877287387,-1456.57,0.0003863,120]
[336492052,1724877287425,-17126.44,0.0003863,120]
[336492053,1724877287464,-2621.51,0.0003863,120]
[336492054,1724877287499,-500.0,0.0003863,120]
[336492055,1724877287536,-544.19,0.0003863,120]
[336492056,1724877287570,-500.0,0.0003863,120]
[336492057,1724877287604,-500.0,0.0003863,120]
[336492058,1724877287640,-561.34,0.0003863,120]
[336492059,1724877287674,-500.0,0.0003863,120]
[336492060,1724877287713,-505.74975304,0.0003863,120]
[336492061,1724877287747,-500.0,0.0003863,120]
[336492062,1724877287780,-500.0,0.0003863,120]
[336492063,1724877287816,-500.0,0.0003863,120]
[336492064,1724877287849,-500.0,0.0003863,120]
[336492065,1724877287882,-500.0,0.0003863,120]
[336492066,1724877287917,-689.62,0.0003863,120]
[336492067,1724877287954,-1309.44,0.0003863,120]
[336492068,1724877287989,-3310.45,0.0003863,120]
[336492069,1724877288024,-503.66,0.0003863,120]
[336492070,1724877288061,-2035.22,0.0003863,120]
[336492071,1724877288099,-500.0,0.0003863,120]
[336492072,1724877288133,-447.80921036,0.0003863,120]
[336492073,1724877288166,-1041.49,0.0003863,120]
[336492074,1724877288204,-500.0,0.0003863,120]
[336492075,1724877288238,-1131.52,0.0003863,120]
[336492076,1724877288271,-500.0,0.0003863,120]
[336492077,1724877288303,-500.0,0.0003863,120]
[336492078,1724877288337,-500.0,0.0003863,120]
[336492079,1724877288370,-500.0,0.0003863,120]
[336492080,1724877288403,-500.0,0.0003863,120]
[336492081,1724877288440,-2059.78,0.0003863,120]
[336492082,1724877288475,-2499.65,0.0003863,120]
[336492083,1724877288507,-1829.13,0.0003863,120]
[336492084,1724877288539,-4633.92,0.0003863,120]
[336492085,1724877288570,-500.0,0.0003863,120]
[336492086,1724877288603,-1150.99,0.0003863,120]
[336492087,1724877288637,-500.0,0.0003863,120]
[336492088,1724877288669,-1780.92,0.0003863,120]
[336492089,1724877288706,-886.81,0.0003863,120]
[336492090,1724877288738,-1294.98,0.0003863,120]
[336492091,1724877288770,-1458.79,0.0003863,120]
[336492092,1724877288803,-748.82,0.0003863,120]
[336492093,1724877288836,-1317.17,0.0003863,120]
[336492094,1724877288872,-2204.82,0.0003863,120]
[336492095,1724877288906,-1871.0,0.0003863,120]
[336492096,1724877288943,-6877.51,0.0003863,120]
[336492097,1724877288978,-500.0,0.0003863,120]
[336492098,1724877289016,-500.0,0.0003863,120]
[336492099,1724877289053,-500.0,0.0003863,120]
[336492100,1724877289087,-500.0,0.0003863,120]
[336492101,1724877289123,-718.53,0.0003863,120]
[336492102,1724877289158,-519.51553981,0.0003863,120]
[336492103,1724877289192,-500.0,0.0003863,120]
[336492104,1724877289225,-500.0,0.0003863,120]
[336492105,1724877289258,-3968.23,0.0003863,120]
[336492106,1724877289290,-500.0,0.0003863,120]
[336492107,1724877289321,-987.58,0.0003863,120]
[336492108,1724877289355,-500.0,0.0003863,120]
[336492109,1724877289387,-731.3,0.0003863,120]
[336492110,1724877289420,-2887.26,0.0003863,120]
[336492111,1724877289454,-500.0,0.0003863,120]
[336492112,1724877289486,-2580.51,0.0003863,120]
[336492113,1724877289518,-564.95,0.0003863,120]
[336492114,1724877289549,-4353.16,0.0003863,120]
[336492115,1724877289579,-598.75,0.0003863,120]
[336492116,1724877289613,-2436.69,0.0003863,120]
[336492117,1724877289644,-500.0,0.0003863,120]
[336492118,1724877289675,-500.0,0.0003863,120]
[336492119,1724877289709,-1753.14,0.0003863,120]
[336492120,1724877289740,-500.0,0.0003863,120]
[336492121,1724877289772,-2160.29,0.0003863,120]
[336492122,1724877289805,-500.0,0.0003863,120]
[336492123,1724877289839,-940.03,0.0003863,120]
[336492124,1724877289873,-1295.45,0.0003863,120]
[336492125,1724877289905,-500.0,0.0003863,120]
[336492126,1724877289940,-500.0,0.0003863,120]
[336492127,1724877289974,-500.0,0.0003863,120]
[336492128,1724877290006,-500.0,0.0003863,120]
[336492129,1724877290039,-1464.39,0.0003863,120]
[336492130,1724877290071,-1665.31,0.0003863,120]
[336492131,1724877290104,-500.0,0.0003863,120]
[336492132,1724877290139,-500.0,0.0003863,120]
[336492133,1724877290173,-1479.05,0.0003863,120]
[336492134,1724877290206,-3663.4,0.0003863,120]
[336492135,1724877290236,-579.87,0.0003863,120]
[336492136,1724877290268,-500.0,0.0003863,120]
[336492137,1724877290299,-1448.28,0.0003863,120]
[336492138,1724877290332,-1173.63,0.0003863,120]
[336492139,1724877290365,-510.32094685,0.0003863,120]
[336492140,1724877290399,-2126.26,0.0003863,120]
[336492141,1724877290434,-641.07,0.0003863,120]
[336492142,1724877290466,-500.0,0.0003863,120]
[336492143,1724877290698,-2402.21,0.0003863,120]
[336492144,1724877290732,-2026.3,0.0003863,120]
[336492145,1724877290766,-1443.61,0.0003863,120]
[336492146,1724877290799,-500.0,0.0003863,120]
[336492147,1724877290831,-500.0,0.0003863,120]
[336492148,1724877290862,-500.0,0.0003863,120]
[336492149,1724877290893,-7184.43,0.0003863,120]
[336492150,1724877290926,-500.0,0.0003863,120]
[336492151,1724877290959,-625.56,0.0003863,120]
[336492152,1724877290991,-2255.03,0.0003863,120]
[336492153,1724877291023,-646.07862253,0.0003863,120]
[336492154,1724877291055,-500.0,0.0003863,120]
[336492155,1724877291085,-1783.52,0.0003863,120]
[336492156,1724877291116,-500.0,0.0003863,120]
[336492157,1724877291149,-2904.96,0.0003863,120]
[336492158,1724877291184,-1077.38,0.0003863,120]
[336492159,1724877291216,-500.0,0.0003863,120]
[336492160,1724877291250,-2733.19,0.0003863,120]
[336492161,1724877291284,-2594.53,0.0003863,120]
[336492162,1724877291316,-2184.71,0.0003863,120]
[336492163,1724877291349,-1133.31,0.0003863,120]
[336492164,1724877291382,-500.0,0.0003863,120]
[336492165,1724877291416,-500.0,0.0003863,120]
[336492166,1724877291448,-500.0,0.0003863,120]
[336492167,1724877291481,-500.0,0.0003863,120]
[336492168,1724877291514,-500.0,0.0003863,120]
[336492169,1724877291545,-500.0,0.0003863,120]
[336492170,1724877291576,-500.0,0.0003863,120]
[336492171,1724877291609,-500.0,0.0003863,120]
[336492172,1724877291642,-500.0,0.0003863,120]
[336492173,1724877291674,-500.0,0.0003863,120]
[336492174,1724877291712,-2580.1,0.0003863,120]
[336492175,1724877291749,-1142.51,0.0003863,120]
[336492176,1724877291783,-533.5042183,0.0003863,120]
[336492177,1724877291820,-18028.59,0.0003863,120]
[336492178,1724877291853,-500.0,0.0003863,120]
[336492179,1724877291886,-682.97,0.0003863,120]
[336492180,1724877291920,-3306.78,0.0003863,120]
[336492181,1724877291957,-1188.73,0.0003863,120]
[336492182,1724877291988,-2156.16,0.0003863,120]
[336492183,1724877292022,-1339.62,0.0003863,120]
[336492184,1724877292055,-500.0,0.0003863,120]
[336492185,1724877292087,-500.0,0.0003863,120]
[336492186,1724877292118,-1976.29,0.0003863,120]
[336492187,1724877292152,-997.35,0.0003863,120]
[336492188,1724877292185,-3829.98,0.0003863,120]
[336492189,1724877292215,-501.9884452,0.0003863,120]
[336492190,1724877292246,-1960.37,0.0003863,120]
[336492191,1724877292278,-5844.59,0.0003863,120]
[336492192,1724877292307,-500.0,0.0003863,120]
[336492193,1724877292340,-4563.0,0.0003863,120]
[336492194,1724877292370,-1455.74,0.0003863,120]
[336492195,1724877292402,-500.0,0.0003863,120]
[336492196,1724877292436,-500.0,0.0003863,120]
[336492197,1724877292468,-2730.9,0.0003863,120]
[336492198,1724877292499,-655.82,0.0003863,120]
[336492199,1724877292529,-500.0,0.0003863,120]
[336492200,1724877292559,-818.65,0.0003863,120]
[336492201,1724877292590,-500.0,0.0003863,120]
[336492202,1724877292621,-1294.35,0.0003863,120]
[336492203,1724877292653,-500.0,0.0003863,120]
[336492204,1724877292685,-500.0,0.0003863,120]
[336492205,1724877292725,-1830.38,0.0003863,120]
[336492206,1724877292756,-1328.63,0.0003863,120]
[336492207,1724877292788,-500.0,0.0003863,120]
[336492208,1724877292820,-897.67,0.0003863,120]
[336492209,1724877292855,-804.49,0.0003863,120]
[336492210,1724877292888,-1231.21,0.0003863,120]
[336492211,1724877292921,-896.95,0.0003863,120]
[336492212,1724877292962,-1374.03,0.0003863,120]
[336492213,1724877292994,-555.45,0.0003863,120]
[336492214,1724877293026,-500.0,0.0003863,120]
[336492215,1724877293060,-1077.75,0.0003863,120]
[336492216,1724877293092,-1293.02,0.0003863,120]
[336492217,1724877293124,-710.04,0.0003863,120]
[336492218,1724877293156,-542.69,0.0003863,120]
[336492219,1724877293196,-991.56,0.0003863,120]
[336492220,1724877293226,-2302.8,0.0003863,120]
[336492221,1724877293256,-2439.67,0.0003863,120]
[336492222,1724877293286,-500.0,0.0003863,120]
[336492223,1724877293317,-1499.11,0.0003863,120]
[336492224,1724877293348,-500.0,0.0003863,120]
[336492225,1724877293380,-1852.89,0.0003863,120]
[336492226,1724877293413,-564.8652802,0.0003863,120]
[336492227,1724877293446,-500.0,0.0003863,120]
[336492228,1724877293476,-2618.15,0.0003863,120]
[336492229,1724877293506,-5386.08,0.0003863,120]
[336492230,1724877293537,-500.0,0.0003863,120]
[336492231,1724877293567,-500.0,0.0003863,120]
[336492232,1724877293598,-500.0,0.0003863,120]
[336492233,1724877293629,-1644.96,0.0003863,120]
[336492234,1724877293661,-712.35,0.0003863,120]
[336492235,1724877293694,-1093.21,0.0003863,120]
[336492236,1724877293724,-1694.03,0.0003863,120]
[336492237,1724877293756,-954.07,0.0003863,120]
[336492238,1724877293786,-500.0,0.0003863,120]
[336492239,1724877293821,-2493.11,0.0003863,120]
[336492240,1724877293855,-500.0,0.0003863,120]
[336492241,1724877293888,-761.08,0.0003863,120]
[336492242,1724877293920,-1918.55,0.0003863,120]
[336492243,1724877293957,-4954.89,0.0003863,120]
[336492244,1724877293988,-598.44,0.0003863,120]
[336492245,1724877294022,-884.88,0.0003863,120]
[336492246,1724877294254,-501.30026833,0.0003863,120]
[336492247,1724877294291,-1004.53,0.0003863,120]
[336492248,1724877294324,-1938.1,0.0003863,120]
[336492249,1724877294357,-500.0,0.0003863,120]
[336492250,1724877294390,-800.46,0.0003863,120]
[336492251,1724877294424,-2938.12,0.0003863,120]
[336492252,1724877294458,-948.94,0.0003863,120]
[336492253,1724877294490,-621.57,0.0003863,120]
[336492254,1724877294522,-1274.02,0.0003863,120]
[336492255,1724877294555,-696.68,0.0003863,120]
[336492256,1724877294588,-500.0,0.0003863,120]
[336492257,1724877294620,-3146.09,0.0003863,120]
[336492258,1724877294652,-500.0,0.0003863,120]
[336492259,1724877294687,-500.0,0.0003863,120]
[336492260,1724877294718,-500.0,0.0003863,120]
[336492261,1724877294749,-1462.93,0.0003863,120]
[336492262,1724877294781,-1663.11,0.0003863,120]
[336492263,1724877294813,-1619.63,0.0003863,120]
[336492264,1724877294847,-503.87,0.0003863,120]
[336492265,1724877294882,-500.0,0.0003863,120]
[336492266,1724877294918,-500.0,0.0003863,120]
[336492267,1724877294952,-500.0,0.0003863,120]
[336492268,1724877294986,-1404.69,0.0003863,120]
[336492269,1724877295021,-3705.42,0.0003863,120]
[336492270,1724877295054,-500.0,0.0003863,120]
[336492271,1724877295085,-477.82464531,0.0003863,120]
[336492272,1724877295117,-500.0,0.0003863,120]
[336492273,1724877295148,-2358.04,0.0003863,120]
[336492274,1724877295179,-3826.01,0.0003863,120]
[336492275,1724877295211,-500.0,0.0003863,120]
[336492276,1724877295242,-500.0,0.0003863,120]
[336492277,1724877295274,-1722.83,0.0003863,120]
[336492278,1724877295304,-500.0,0.0003863,120]
[336492279,1724877295337,-1062.49,0.0003863,120]
[336492280,1724877295369,-500.0,0.0003863,120]
[336492281,1724877295402,-500.0,0.0003863,120]
[336492282,1724877295436,-500.0,0.0003863,120]
[336492283,1724877295468,-1469.79,0.0003863,120]
[336492284,1724877295501,-1093.64,0.0003863,120]
[336492285,1724877295533,-1497.58,0.0003863,120]
[336492286,1724877295566,-2087.61,0.0003863,120]
[336492287,1724877295601,-1696.2,0.0003863,120]
[336492288,1724877295637,-554.38,0.0003863,120]
[336492289,1724877295670,-501.21631677,0.0003863,120]
[336492290,1724877295705,-500.0,0.0003863,120]
[336492291,1724877295741,-500.0,0.0003863,120]
[336492292,1724877295777,-500.0,0.0003863,120]
[336492293,1724877295812,-500.0,0.0003863,120]
[336492294,1724877295848,-500.0,0.0003863,120]
[336492295,1724877295884,-1725.54,0.0003863,120]
[336492296,1724877295918,-512.02284017,0.0003863,120]
[336492297,1724877295955,-2344.55,0.0003863,120]
[336492298,1724877295989,-512.0475225,0.0003863,120]
[336492299,1724877296028,-1108.72,0.0003863,120]
[336492300,1724877296069,-1696.92,0.0003863,120]
[336492301,1724877296110,-532.01,0.0003863,120]
[336492302,1724877296149,-500.0,0.0003863,120]
[336492303,1724877296190,-3305.49,0.0003863,120]
[336492304,1724877296232,-1576.05,0.0003863,120]
[336492305,1724877296267,-500.0,0.0003863,120]
[336492306,1724877296300,-1641.7,0.0003863,120]
[336492307,1724877296333,-669.11,0.0003863,120]
[336492308,1724877296368,-438.87486319,0.0003863,120]
[336492309,1724877296400,-500.0,0.0003863,120]
[336492310,1724877296434,-1378.7,0.0003863,120]
[336492311,1724877296470,-2894.17,0.0003863,120]
[336492312,1724877296501,-3756.0,0.0003863,120]
[336492313,1724877296534,-504.54,0.0003863,120]
[336492314,1724877296569,-5926.99,0.0003863,120]
[336492315,1724877296604,-3035.15,0.0003863,120]
[336492316,1724877296639,-799.37,0.0003863,120]
[336492317,1724877296671,-500.0,0.0003863,120]
[336492318,1724877296704,-1282.29,0.0003863,120]
[336492319,1724877296736,-1298.0,0.0003863,120]
[336492320,1724877296767,-691.66,0.0003863,120]
[336492321,1724877296798,-500.0,0.0003863,120]
[336492322,1724877296829,-4020.83,0.0003863,120]
[336492323,1724877296861,-522.47915104,0.0003863,120]
[336492324,1724877296892,-500.0,0.0003863,120]
[336492325,1724877296924,-1198.56,0.0003863,120]
[336492326,1724877296957,-2253.06,0.0003863,120]
[336492327,1724877296990,-1961.45,0.0003863,120]
[336492328,1724877297022,-3453.46,0.0003863,120]
[336492329,1724877297054,-500.0,0.0003863,120]
[336492330,1724877297085,-500.0,0.0003863,120]
[336492331,1724877297116,-500.0,0.0003863,120]
[336492332,1724877297148,-611.58,0.0003863,120]
[336492333,1724877297179,-500.0,0.0003863,120]
[336492334,1724877297212,-500.0,0.0003863,120]
[336492335,1724877297244,-2161.87,0.0003863,120]
[336492336,1724877297275,-500.0,0.0003863,120]
[336492337,1724877297307,-4400.21,0.0003863,120]
[336492338,1724877297343,-682.91,0.0003863,120]
[336492339,1724877297375,-1525.8,0.0003863,120]
[336492340,1724877297407,-2965.82,0.0003863,120]
[336492341,1724877297443,-933.73,0.0003863,120]
[336492342,1724877297475,-539.03,0.0003863,120]
[336492343,1724877297506,-1637.04,0.0003863,120]
[336492344,1724877297539,-500.0,0.0003863,120]
[336492345,1724877297571,-1000.0,0.0003863,120]
[336492346,1724877297604,-500.0,0.0003863,120]
[336492347,1724877297637,-569.52,0.0003863,120]
[336492348,1724877297670,-2400.9,0.0003863,120]
[336492349,1724877297707,-2178.02,0.0003863,120]
[336492350,1724877297938,-627.0,0.0003863,120]
[336492351,1724877297972,-967.25,0.0003863,120]
[336492352,1724877298005,-500.0,0.0003863,120]
[336492353,1724877298038,-1493.46,0.0003863,120]
[336492354,1724877298071,-3868.58,0.0003863,120]
[336492355,1724877298104,-397.80465995,0.0003863,120]
[336492356,1724877298140,-3906.29,0.0003863,120]
[336492357,1724877298175,-500.0,0.0003863,120]
[336492358,1724877298207,-500.0,0.0003863,120]
[336492359,1724877298242,-656.01,0.0003863,120]
[336492360,1724877298273,-2766.05,0.0003863,120]
[336492361,1724877298305,-831.66,0.0003863,120]
[336492362,1724877298341,-500.0,0.0003863,120]
[336492363,1724877298373,-500.0,0.0003863,120]
[336492364,1724877298412,-4909.45,0.0003863,120]